bitfinex-derivatives/quotes_ETHF0:USTF0_20210403
["timestamp","ask_amount","ask_price","bid_price","bid_amount"]
[1617469425754,5.28995,2065.1,2064.9,64.2765]
[1617469425955,5.28995,2065.1,2064.9,64.2473]
[1617469426557,5.28995,2065.1,2064.9,64.1672]
[1617469429060,5.28995,2065.1,2064.4,2.90695]
[1617469430264,2.90695,2064.5,2064.4,2.90695]
[1617469436076,5.03875,2064.5,2064.4,2.90695]
[1617469436377,5.03875,2064.5,2063.9,65.0931]
[1617469438379,2.90695,2064.0,2063.9,65.0931]
[1617469438579,5.10225,2064.0,2063.9,65.0931]
[1617469438979,5.10225,2064.0,2063.6,5.01223432]
[1617469439279,5.10225,2064.0,2063.5,5.01240737]
[1617469439580,5.10225,2064.0,2063.4,2.90695]
[1617469439581,2.90695,2064.0,2063.6,5.01215564]
[1617469439981,2.90695,2064.0,2063.8,5.0118911]
[1617469440282,2.90695,2064.0,2063.7,5.01204165]
[1617469441481,2.90695,2064.0,2063.6,5.01230916]
[1617469442182,2.90695,2064.0,2063.5,5.01257444]
[1617469442384,2.90695,2063.6,2063.5,5.01257444]
[1617469442583,5.27255,2063.6,2063.5,5.01257444]
[1617469442788,5.27255,2063.6,2063.4,2.90695]
[1617469442789,5.27255,2063.6,2063.4,7.91966168]
[1617469443084,5.27255,2063.6,2063.5,5.01274968]
[1617469444887,5.27255,2063.6,2063.4,2.90695]
[1617469445289,5.27255,2063.6,2063.4,9.03334154]
[1617469445588,5.27255,2063.6,2063.4,2.90695]
[1617469445889,6.24525,2063.6,2063.4,2.90695]
[1617469446189,5.27255,2063.6,2063.4,2.90695]
[1617469450791,5.27255,2063.6,2063.1,5.00346797]
[1617469450999,6.22745,2063.6,2063.0,5.00374046]
[1617469451391,6.22745,2063.6,2062.8,5.00400084]
[1617469451791,6.22745,2063.6,2062.7,5.0039894]
[1617469452191,6.22745,2063.6,2062.8,5.00394422]
[1617469452392,2.90695,2062.9,2062.8,7.91089422]
[1617469452591,2.90695,2062.9,2062.6,5.00098327]
[1617469452992,2.90695,2062.9,2062.8,5.00094325]
[1617469453193,2.90695,2062.9,2062.7,6.2542264]
[1617469453392,2.90695,2062.9,2062.8,0.14206443]
[1617469454093,0.9678,2064.8,2062.8,6.25396633]
[1617469454293,32.0,2065.9,2063.6,72.3791]
[1617469454594,32.0,2065.9,2063.7,2.90695]
[1617469454794,30.0,2065.9,2063.7,2.90695]
[1617469455296,30.0,2066.0,2063.7,2.90695]
[1617469455494,32.0,2066.0,2063.7,2.90695]
[1617469455894,32.0,2066.0,2063.6,72.3791]
[1617469456395,34.0721,2066.0,2063.6,72.3791]
[1617469456595,2.90695,2063.7,2063.6,72.3791]
[1617469456795,2.90695,2063.7,2063.3,4.99977486]
[1617469457000,2.90695,2063.7,2063.1,5.00585689]
[1617469457295,2.90695,2063.7,2063.0,5.00621143]
[1617469457296,4.60395,2063.7,2063.0,5.00621143]
[1617469457699,4.60395,2063.7,2062.9,5.00639469]
[1617469458300,4.60395,2063.7,2062.8,5.00656419]
[1617469458498,2.90695,2063.0,2062.8,5.00656419]
[1617469458898,2.90695,2063.0,2062.9,0.14207745]
[1617469459600,2.90695,2063.0,2062.9,5.14828708]
[1617469460305,2.90695,2063.0,2062.8,5.0066071]
[1617469460805,4.69325,2063.0,2062.9,0.14208348]
[1617469461004,4.69325,2063.0,2062.7,5.00698355]
[1617469461705,4.69325,2063.0,2062.8,0.14208458]
[1617469462305,2.90695,2063.0,2062.8,0.14208458]
[1617469462504,2.90695,2063.0,2062.8,5.1486866]
[1617469462904,2.90695,2063.0,2062.9,0.14208177]
[1617469463604,5.38665,2063.0,2062.8,5.00660202]
[1617469463904,5.38665,2063.0,2062.6,73.9218103]
[1617469464404,5.38665,2063.0,2062.6,68.9166]
[1617469464604,2.90695,2062.7,2062.6,68.9166]
[1617469466007,2.90695,2062.7,2062.3,5.00589886]
[1617469466507,2.4797,2063.0,2062.4,5.005579]
[1617469466707,11.0,2062.9,2062.4,5.005579]
[1617469467207,11.0,2062.9,2062.6,8.40540902]
[1617469468609,2.90695,2062.7,2062.5,8.40578426]
[1617469469307,2.90695,2062.7,2062.5,7.46458426]
[1617469469709,2.90695,2062.7,2062.3,55.77]
[1617469470409,2.90695,2062.7,2062.6,7.28650421]
[1617469470610,11.0,2062.9,2062.6,7.28650421]
[1617469471211,11.0,2062.9,2062.5,7.28675236]
[1617469472514,11.0,2062.9,2062.6,7.28697069]
[1617469473914,11.0,2062.9,2062.7,7.28658829]
[1617469474315,11.0,2062.9,2062.8,7.28639292]
[1617469474513,13.90695,2062.9,2062.8,7.28639292]
[1617469474714,13.90695,2062.9,2062.7,7.28655495]
[1617469475114,13.90695,2062.9,2062.5,7.27890544]
[1617469475514,13.90695,2062.9,2062.6,7.27895474]
[1617469476017,13.90695,2062.9,2062.5,7.27896691]
[1617469476418,13.90695,2062.9,2062.8,6.15946918]
[1617469477019,13.90695,2062.9,2062.8,1.42376918]
[1617469477219,13.90695,2062.9,2062.7,5.04021031]
[1617469477419,15.49675,2062.9,2062.7,5.04021031]
[1617469477920,15.49675,2062.9,2062.6,5.04047549]
[1617469478522,15.49675,2062.9,2062.6,3.11317549]
[1617469478721,15.49675,2062.9,2062.3,55.5135]
[1617469478921,15.49675,2062.9,2061.9,7.28082638]
[1617469479221,15.49675,2062.9,2061.8,7.28096483]
[1617469480122,15.49675,2062.9,2061.7,7.28139744]
[1617469480724,5.12495,2061.8,2061.7,7.28139744]
[1617469481128,5.12495,2061.8,2061.6,7.28159399]
[1617469482230,5.12495,2061.8,2061.7,7.28148411]
[1617469482931,5.12495,2061.8,2061.7,9.56904569]
[1617469484432,2.90695,2061.8,2061.7,9.56904569]
[1617469484835,2.90695,2061.8,2061.4,10.69420917]
[1617469485732,2.90695,2061.8,2061.5,0.14216507]
[1617469485932,2.90695,2061.8,2061.6,10.69408484]
[1617469486334,2.90695,2061.8,2061.6,9.54912898]
[1617469486834,2.90695,2061.8,2061.6,12.45607898]
[1617469487035,2.90695,2061.8,2061.6,2.90695]
[1617469488338,11.0,2062.9,2061.6,2.90695]
[1617469488739,11.0,2062.9,2062.4,2.90695]
[1617469488939,11.0,2062.9,2062.5,8.4238084]
[1617469489838,11.0,2062.9,2062.8,7.3006802]
[1617469490738,13.90695,2062.9,2062.8,7.3006802]
[1617469492538,13.90695,2062.9,2062.7,7.30095381]
[1617469493039,13.90695,2062.9,2062.8,7.30077496]
[1617469493944,13.90695,2062.9,2062.4,10.43977111]
[1617469493945,13.90695,2062.9,2062.5,8.42350015]
[1617469494343,13.90695,2062.9,2062.6,8.42584162]
[1617469494844,2.90695,2062.6,2062.5,8.42587529]
[1617469495343,2.90695,2062.6,2062.4,8.426229]
[1617469496244,2.90695,2062.6,2062.2,58.9679]
[1617469496546,2.90695,2062.6,2062.2,67.39517011]
[1617469496744,2.90695,2062.3,2062.2,67.39517011]
[1617469496945,3.88675,2062.3,2062.2,67.39517011]
[1617469497547,3.88675,2062.3,2062.2,58.9679]
[1617469498745,3.88675,2062.3,2062.2,61.87485]
[1617469498946,3.88675,2062.3,2062.2,2.90695]
[1617469501050,3.88675,2062.3,2062.1,9.54740374]
[1617469504356,3.88675,2062.3,2062.2,77.2343]
[1617469505860,3.88675,2062.3,2061.9,11.82226928]
[1617469506065,6.14395,2062.3,2062.2,8.42746794]
[1617469506559,6.14395,2062.3,2062.1,8.42746457]
[1617469507059,6.14395,2062.3,2061.9,8.42827288]
[1617469507559,6.14395,2062.3,2062.0,8.42814434]
[1617469507758,6.14395,2062.3,2062.0,8.57030864]
[1617469508158,6.14395,2062.3,2062.0,8.42814434]
[1617469508559,6.14395,2062.3,2062.1,8.42820251]
[1617469508763,6.14395,2062.3,2062.1,8.57036538]
[1617469508961,6.14395,2062.3,2062.1,8.42820251]
[1617469509161,6.14395,2062.3,2062.0,8.42825469]
[1617469509366,6.14395,2062.3,2062.1,8.4281471]
[1617469510065,6.14395,2062.3,2062.0,8.42855539]
[1617469511071,6.14395,2062.3,2061.9,8.42872482]
[1617469511565,6.14395,2062.3,2061.5,11.82715616]
[1617469511968,6.14395,2062.3,2061.6,0.14217352]
[1617469512869,2.90695,2061.7,2061.6,0.14217352]
[1617469513069,5.01095,2061.7,2061.6,0.14217352]
[1617469513970,5.01095,2061.7,2061.4,0.1421741]
[1617469515472,5.01095,2061.7,2061.3,0.14217981]
[1617469515772,5.01095,2061.7,2061.6,9.56853137]
[1617469515973,5.01095,2061.7,2061.6,9.71071112]
[1617469517076,5.01095,2061.7,2061.6,9.46621112]
[1617469517277,7.01095,2061.7,2061.6,8.66211112]
[1617469517476,7.01095,2061.7,2061.6,0.14217975]
[1617469517676,7.01095,2061.7,2060.9,10.69540736]
[1617469518077,7.01095,2061.7,2060.6,10.69750269]
[1617469518576,37.01095,2061.7,2060.5,10.69787976]
[1617469518877,37.01095,2061.7,2061.5,5.05602184]
[1617469519077,37.01095,2061.7,2059.4,14.1699962]
[1617469520078,37.01095,2061.7,2061.6,6.1952295]
[1617469520381,37.01095,2061.7,2061.5,6.19529884]
[1617469520982,32.0,2061.4,2059.3,11.26405363]
[1617469521184,32.0,2061.4,2059.2,11.26442261]
[1617469521381,32.0,2061.4,2058.0,13.7096]
[1617469521382,32.0,2061.4,2060.5,8.44875848]
[1617469521683,78.4149,2061.0,2060.5,8.44875848]
[1617469521885,80.489,2061.0,2060.4,8.44896313]
[1617469522887,80.489,2061.0,2060.5,8.44890633]
[1617469523083,2.90695,2060.6,2060.5,8.44890633]
[1617469523884,2.90695,2060.6,2060.5,8.59118564]
[1617469524284,2.90695,2060.6,2060.5,1.15244593]
[1617469525485,4.90695,2060.6,2059.5,8.09981103]
[1617469525685,4.90695,2060.6,2058.9,60.25]
[1617469525986,4.90695,2060.6,2058.0,15.9860418]
[1617469526185,59.0478,2060.0,2058.0,15.9860418]
[1617469526485,59.0478,2060.0,2058.0,13.7096]
[1617469526986,59.0478,2060.0,2058.3,2.90695]
[1617469527186,60.0214,2060.0,2058.3,2.90695]
[1617469527385,60.0214,2060.0,2059.0,9.54670101]
[1617469527786,60.0214,2060.0,2058.6,9.54754163]
[1617469527988,60.0214,2060.0,2058.5,9.54766778]
[1617469528988,2.90695,2058.6,2058.5,9.54766778]
[1617469529188,2.90695,2058.6,2058.4,9.54790358]
[1617469530592,2.90695,2058.6,2058.3,9.54840587]
[1617469531393,3.86485,2058.6,2058.3,9.54840587]
[1617469531893,2.90695,2058.6,2058.2,9.54900148]
[1617469532596,2.90695,2058.6,2058.3,9.54865996]
[1617469533600,3.87635,2058.6,2058.3,9.54865996]
[1617469533900,2.90695,2058.6,2058.3,9.54865996]
[1617469534400,2.90695,2058.6,2058.4,9.5482767]
[1617469535404,2.90695,2058.6,2058.2,7.27139551]
[1617469537702,2.90695,2058.6,2058.3,7.27188316]
[1617469538104,2.90695,2058.6,2058.4,7.27848633]
[1617469538404,2.90695,2058.6,2058.5,7.27838948]
[1617469538905,2.90695,2058.6,2058.4,7.27862916]
[1617469539108,2.90695,2058.6,2058.3,7.27885813]
[1617469539607,2.90695,2058.6,2058.2,7.27888579]
[1617469540410,3.88685,2058.6,2058.2,7.27888579]
[1617469540607,2.90695,2058.6,2058.2,7.27888579]
[1617469540907,2.90695,2058.6,2058.5,6.15948031]
[1617469541608,2.90695,2058.6,2058.1,7.27938582]
[1617469542208,2.90695,2058.6,2057.7,79.64149134]
[1617469542209,2.90695,2058.6,2058.2,7.27924716]
[1617469542411,2.90695,2058.6,2058.5,6.1594128]
[1617469542711,2.90695,2058.6,2058.2,7.28319689]
[1617469543011,2.90695,2058.3,2058.2,7.28319689]
[1617469543211,2.90695,2058.3,2057.9,2.90695]
[1617469543411,2.90695,2058.3,2057.9,11.31042067]
[1617469544512,2.90695,2058.3,2058.0,8.40296992]
[1617469544715,58.3101,2058.9,2058.0,8.40296992]
[1617469544911,71.7788,2060.0,2058.0,8.40296992]
[1617469544912,0.9736,2060.0,2058.0,10.18256992]
[1617469545112,0.9736,2060.0,2058.6,2.90695]
[1617469545516,0.9736,2060.0,2059.1,5.04154131]
[1617469546212,0.9736,2060.0,2058.8,5.03339092]
[1617469546512,0.9736,2060.0,2058.7,5.03341367]
[1617469547112,2.90695,2058.8,2058.7,5.03341367]
[1617469548014,0.9736,2060.0,2058.7,5.03341367]
[1617469548414,0.9736,2060.0,2058.8,5.03329483]
[1617469548915,62.3339,2060.2,2058.8,5.03329483]
[1617469549116,62.3339,2060.2,2059.0,5.03253896]
[1617469549416,62.3339,2060.2,2058.9,2.90695]
[1617469549417,62.3339,2060.2,2059.1,5.03241003]
[1617469549818,62.3339,2060.2,2059.2,7.01958505]
[1617469550319,0.9649,2060.3,2059.2,7.01958505]
[1617469550320,0.9649,2060.3,2059.3,5.03228232]
[1617469550519,2.0,2061.7,2059.3,5.03228232]
[1617469551119,2.90695,2059.6,2059.5,7.93867831]
[1617469553222,2.90695,2059.6,2059.5,2.90695]
[1617469553920,2.90695,2059.6,2059.5,6.15475788]
[1617469554321,2.90695,2059.6,2059.4,6.15493156]
[1617469555222,2.90695,2059.6,2059.5,5.03599132]
[1617469555523,2.90695,2059.6,2059.4,5.03634326]
[1617469556326,2.90695,2059.6,2059.5,5.03623237]
[1617469556725,2.90695,2059.6,2059.4,5.0362846]
[1617469557524,2.90695,2059.6,2059.5,5.03621472]
[1617469558226,2.90695,2059.6,2059.3,7.27849461]
[1617469560527,2.90695,2059.6,2059.2,7.2788407]
[1617469561131,2.90695,2059.3,2059.2,7.2788407]
[1617469561931,2.90695,2059.3,2059.0,7.27994114]
[1617469562334,2.90695,2059.3,2058.8,7.28008992]
[1617469562335,3.86385,2059.3,2058.8,7.28008992]
[1617469562633,3.86385,2059.3,2059.2,6.16033334]
[1617469562934,3.86385,2059.3,2059.2,5.04069183]
[1617469563336,3.86385,2059.3,2059.1,5.04096781]
[1617469563835,3.86385,2059.3,2059.1,2.62696781]
[1617469564037,3.86385,2059.3,2058.8,6.16134881]
[1617469564736,3.86385,2059.3,2058.8,5.18204881]
[1617469564936,3.86385,2059.3,2058.8,5.01254881]
[1617469565136,3.86385,2059.3,2058.5,7.28881772]
[1617469565336,2.90695,2058.6,2058.5,7.28881772]
[1617469565536,5.18895,2058.6,2058.5,7.28881772]
[1617469565736,5.18895,2058.6,2058.3,7.2894312]
[1617469566140,5.18895,2058.6,2058.1,7.28975354]
[1617469566440,6.16615,2058.6,2058.1,7.28975354]
[1617469567039,6.16615,2058.6,2058.0,7.29006249]
[1617469567240,2.90695,2058.1,2057.8,7.29025679]
[1617469567439,5.22885,2058.1,2057.8,7.29025679]
[1617469567639,5.22885,2058.1,2057.7,7.2905962]
[1617469568440,5.22885,2058.1,2057.6,7.29110513]
[1617469569045,5.22885,2058.1,2057.5,7.29108255]
[1617469569242,2.90695,2057.6,2057.5,7.29108255]
[1617469570344,4.63355,2057.6,2057.5,7.29108255]
[1617469570945,4.63355,2057.6,2057.4,7.29136608]
[1617469571447,4.63355,2057.6,2057.2,4.8298]
[1617469571646,4.63355,2057.6,2057.2,3.8648]
[1617469571944,4.63355,2057.6,2057.2,2.8948]
[1617469572144,4.63355,2057.6,2057.2,1.3806]
[1617469572345,4.63355,2057.6,2057.2,1.3128]
[1617469572544,34.63355,2057.6,2055.3,8.38731664]
[1617469572744,69.0289,2056.2,2055.3,8.38731664]
[1617469572946,70.7405,2056.2,2055.3,8.38731664]
[1617469573145,70.7405,2056.2,2055.2,65.6642]
[1617469573348,70.7405,2056.2,2055.1,8.38826412]
[1617469573349,2.90695,2055.2,2055.0,2.28032916]
[1617469573644,4.60635,2055.2,2055.0,2.28032916]
[1617469573845,4.60635,2055.2,2054.8,8.39015579]
[1617469574047,4.60635,2055.2,2054.8,6.45115579]
[1617469574245,4.60635,2055.2,2054.0,22.60978264]
[1617469574646,2.1328,2054.5,2054.0,22.60978264]
[1617469574847,2.1328,2054.5,2054.1,9.51062138]
[1617469575248,1.6994,2055.2,2054.6,2.90695]
[1617469575650,2.6771,2056.2,2054.6,2.90695]
[1617469575850,3.7266,2057.6,2054.6,4.74785]
[1617469576151,1.7266,2057.6,2055.9,5.03658544]
[1617469576350,30.0,2058.7,2055.9,6.69568544]
[1617469576553,32.0,2058.7,2056.0,5.03633129]
[1617469576750,2.0,2058.7,2056.0,5.03633129]
[1617469577053,2.0,2058.7,2056.2,5.03583062]
[1617469577251,2.90695,2056.4,2056.3,5.03579493]
[1617469577953,2.90695,2056.4,2056.2,6.15434086]
[1617469578353,2.90695,2056.4,2056.3,6.15451786]
[1617469578753,2.90695,2056.4,2056.2,6.15446089]
[1617469579453,2.90695,2056.4,2056.1,6.15481823]
[1617469579653,4.97555,2056.4,2056.1,6.15481823]
[1617469579954,4.97555,2056.4,2056.0,6.15533284]
[1617469580253,4.97555,2056.4,2055.6,6.15613087]
[1617469580454,4.97555,2056.4,2055.4,6.15655587]
[1617469581355,2.90695,2055.5,2055.4,6.15655587]
[1617469581855,2.90695,2055.5,2055.2,6.15709204]
[1617469582756,2.90695,2055.5,2053.7,65.9839]
[1617469582955,2.90695,2055.5,2053.4,6.11665385]
[1617469583156,62.631,2055.1,2053.3,6.11669904]
[1617469583359,62.631,2055.1,2054.0,2.90695]
[1617469584559,62.631,2055.1,2054.0,5.03335]
[1617469585358,62.631,2055.1,2055.0,2.90695]
[1617469585558,39.9204,2055.1,2055.0,4.48195]
[1617469585760,21.3152,2055.1,2055.0,4.48195]
[1617469586162,13.2517,2058.5,2055.0,4.48195]
[1617469586364,13.0782,2058.4,2056.0,64.1518]
[1617469586561,13.0782,2058.4,2056.0,65.7838]
[1617469587363,13.0782,2058.4,2057.1,2.90695]
[1617469587561,13.0782,2058.4,2056.0,65.7838]
[1617469588560,14.0554,2058.4,2056.0,65.7838]
[1617469588760,13.0782,2058.4,2056.0,1.632]
[1617469588960,13.0782,2058.4,2057.1,59.5796]
[1617469589364,2.90695,2057.2,2057.1,61.568]
[1617469589762,2.90695,2057.2,2057.1,1.9884]
[1617469590165,4.95255,2057.2,2056.0,79.5971]
[1617469591465,2.90695,2056.1,2056.0,79.5971]
[1617469593069,12.9876,2057.6,2056.0,79.5971]
[1617469593268,12.9876,2057.6,2056.0,1.6743]
[1617469593669,12.9876,2057.6,2057.1,66.6839]
[1617469595470,2.90695,2057.2,2057.1,66.6839]
[1617469595970,13.0782,2058.4,2057.1,66.6839]
[1617469596172,13.0782,2058.4,2057.1,68.2746]
[1617469596372,13.9738,2059.5,2057.1,68.2746]
[1617469596577,13.6597,2059.4,2057.1,1.5907]
[1617469596976,13.6597,2059.4,2058.1,67.4186]
[1617469597373,13.6597,2059.4,2058.2,2.90695]
[1617469597575,2.90695,2058.4,2058.2,2.90695]
[1617469598774,2.90695,2058.4,2057.5,72.8263]
[1617469599576,1.7402,2059.1,2057.5,72.8263]
[1617469599577,2.90695,2057.6,2057.5,72.8263]
[1617469599774,1.7402,2059.1,2057.5,72.8263]
[1617469600976,0.983,2059.2,2057.5,72.8263]
[1617469601479,2.90695,2057.6,2057.5,75.1593]
[1617469604278,2.90695,2057.6,2057.5,72.8263]
[1617469606383,15.5623,2059.4,2057.5,72.8263]
[1617469606583,13.6597,2059.4,2057.5,72.8263]
[1617469607485,2.90695,2057.6,2057.5,72.8263]
[1617469610291,5.12635,2057.6,2056.9,5.03726162]
[1617469610487,5.12635,2057.6,2056.7,6.15665309]
[1617469610488,5.12635,2057.6,2056.7,5.03778517]
[1617469610685,5.12635,2057.6,2056.4,5.03819203]
[1617469611286,5.12635,2057.6,2056.3,5.0384231]
[1617469611488,2.90695,2056.4,2056.3,5.0384231]
[1617469611989,2.2194,2057.6,2056.3,5.0384231]
[1617469612187,13.4088,2058.4,2056.3,5.0384231]
[1617469613490,2.90695,2056.4,2056.3,2.90695]
[1617469614090,13.4088,2058.4,2056.3,2.90695]
[1617469614292,13.4088,2058.4,2056.3,9.07005062]
[1617469614693,13.4088,2058.4,2056.5,5.04253184]
[1617469615494,2.90695,2056.6,2056.5,5.04253184]
[1617469616098,13.4088,2058.4,2056.8,57.014]
[1617469617197,13.4088,2058.4,2056.8,62.05581858]
[1617469617600,2.90695,2056.9,2056.8,62.05581858]
[1617469617897,2.90695,2056.9,2056.8,57.014]
[1617469618899,2.90695,2056.9,2056.5,8.41267735]
[1617469619299,2.90695,2056.9,2056.5,7.29185751]
[1617469619499,2.90695,2056.6,2056.5,7.29185751]
[1617469619700,4.93625,2056.6,2056.2,7.29222078]
[1617469620002,4.93625,2056.6,2055.4,12.44293103]
[1617469620003,4.93625,2056.6,2056.5,6.17117681]
[1617469620501,4.93625,2056.6,2056.4,6.17114296]
[1617469621001,4.93625,2056.6,2056.5,6.17106517]
[1617469621401,4.93625,2056.6,2056.4,6.17126628]
[1617469621901,4.93625,2056.6,2056.5,5.05024449]
[1617469622101,4.93625,2056.6,2056.3,6.17252105]
[1617469622301,4.93625,2056.6,1205.8,2.33470871]
[1617469622302,34.93625,2056.6,2055.7,5.20522685]
[1617469622601,2.0,2056.2,2055.0,7.29657644]
[1617469622800,32.0,2056.2,2055.0,5.83467644]
[1617469623003,32.0,2056.2,2053.4,76.875]
[1617469623004,32.0,2056.2,2054.2,8.42009795]
[1617469623502,2.90695,2054.3,2054.2,8.42009795]
[1617469623702,2.90695,2054.3,2054.1,8.42069649]
[1617469624101,2.90695,2054.3,2053.4,76.875]
[1617469624102,2.90695,2054.3,2054.0,8.42077107]
[1617469624403,2.90695,2054.3,2053.4,76.875]
[1617469624404,2.90695,2054.3,2054.1,8.42056611]
[1617469624802,2.90695,2054.3,2054.2,8.41995944]
[1617469625204,2.90695,2054.3,2053.9,9.54247911]
[1617469625606,2.90695,2054.3,2054.0,3.04955736]
[1617469626006,2.90695,2054.3,2054.0,2.90695]
[1617469626306,2.90695,2054.3,2054.2,8.41860069]
[1617469627208,4.85565,2054.3,2054.0,8.41972141]
[1617469627409,4.85565,2054.3,2053.9,8.41983979]
[1617469627610,2.90695,2054.0,2053.9,8.41983979]
[1617469627808,2.90695,2054.0,2052.8,63.8721]
[1617469627809,2.90695,2054.0,2053.6,8.42074692]
[1617469628311,77.26155,2054.0,2053.4,8.42101131]
[1617469628508,77.26155,2054.0,2052.9,2.28292707]
[1617469628909,77.26155,2054.0,2052.2,9.54818575]
[1617469629309,77.26155,2054.0,2049.9,5.13770558]
[1617469629310,107.26155,2054.0,2052.0,9.54874687]
[1617469629510,107.26155,2054.0,2052.0,7.60574687]
[1617469629711,4.61985,2052.1,2051.8,9.54932177]
[1617469629911,4.61985,2052.1,2051.3,2.90695]
[1617469631612,2.90695,2052.1,2052.0,2.90695]
[1617469631814,60.0529,2053.0,2052.0,2.90695]
[1617469632015,13.5316,2053.9,2052.0,2.90695]
[1617469633114,13.5316,2053.9,2051.7,74.0055]
[1617469633616,13.5316,2053.9,2052.4,2.90695]
[1617469633816,13.5316,2053.9,2052.4,4.91835]
[1617469634114,13.5316,2053.9,2051.7,74.0055]
[1617469634315,78.969,2053.4,2050.4,5.01299794]
[1617469634714,110.674,2053.4,2050.2,5.01332848]
[1617469635116,110.674,2053.4,2050.1,5.01375041]
[1617469635316,110.674,2053.4,2050.0,5.01381931]
[1617469636017,31.705,2053.4,2049.9,5.01496781]
[1617469636219,64.067,2052.2,2049.9,5.01496781]
[1617469636417,66.5666,2052.2,2049.4,5.0155841]
[1617469636817,66.5666,2052.2,2049.3,5.01554636]
[1617469637117,14.2982,2052.1,2049.3,5.01554636]
[1617469637616,14.2982,2052.1,2049.7,2.90695]
[1617469638517,44.2982,2052.1,2049.2,5.01578795]
[1617469638818,44.2982,2052.1,2049.1,5.01586573]
[1617469639518,14.2982,2052.1,2049.1,5.01586573]
[1617469639718,14.2982,2052.1,2049.6,2.90695]
[1617469641619,2.90695,2049.7,2049.6,2.90695]
[1617469642226,2.1088,2051.3,2049.6,2.90695]
[1617469642824,14.2982,2052.1,2049.6,2.90695]
[1617469643626,2.90695,2050.7,2050.4,2.90695]
[1617469643825,2.90695,2050.7,2050.4,5.35485]
[1617469644425,2.90695,2050.7,2050.4,2.4479]
[1617469644928,2.90695,2050.7,2048.4,61.3005]
[1617469645728,1.5322,2050.9,2050.0,2.90695]
[1617469646327,1.5322,2050.9,2048.4,61.3005]
[1617469647627,1.5322,2050.9,2049.1,2.90695]
[1617469649628,13.5202,2052.0,2049.1,2.90695]
[1617469649829,13.5202,2052.0,2049.9,2.90695]
[1617469650432,14.2982,2052.1,2049.9,2.90695]
[1617469650433,14.2982,2052.1,2050.1,75.9932]
[1617469651833,14.2982,2052.1,2051.1,5.20115]
[1617469653533,13.6561,2053.4,2051.1,5.20115]
[1617469653731,2.90695,2051.2,2051.1,5.20115]
[1617469653932,12.9566,2053.3,2051.1,5.20115]
[1617469654434,12.9566,2053.3,2050.1,74.2659]
[1617469654632,14.8308,2053.3,2050.1,74.2659]
[1617469655437,30.0,2053.2,2050.1,74.2659]
[1617469655835,2.90695,2050.2,2050.1,74.2659]
[1617469656048,2.90695,2050.2,2049.6,2.90695]
[1617469657837,2.90695,2049.7,2049.6,2.90695]
[1617469658439,2.2496,2051.2,2049.6,2.90695]
[1617469659343,13.052,2051.3,2049.6,2.90695]
[1617469659644,13.052,2051.3,2049.6,73.50695]
[1617469659842,69.1406,2052.7,2050.3,2.90695]
[1617469661345,69.1406,2052.7,2049.6,70.6]
[1617469661548,71.668,2052.7,2049.6,70.6]
[1617469661747,30.0,2052.6,2049.7,2.90695]
[1617469663746,2.90695,2049.8,2049.7,2.90695]
[1617469664048,2.90695,2049.8,2048.1,4.98192202]
[1617469664247,2.90695,2049.8,2048.6,62.7268]
[1617469665752,1.7904,2050.6,2049.5,2.90695]
[1617469666153,61.7319,2050.9,2049.5,2.90695]
[1617469667755,61.7319,2050.9,2050.0,2.90695]
[1617469667955,27.551,2052.1,2050.0,2.90695]
[1617469669960,2.90695,2050.1,2048.2,13.0886]
[1617469670160,2.90695,2050.1,2047.7,4.9717804]
[1617469670161,2.90695,2050.1,2048.4,76.1052]
[1617469671961,1.9248,2050.3,2048.8,2.90695]
[1617469672361,1.9248,2050.3,2047.1,4.97274192]
[1617469672761,1.9248,2050.3,2046.3,18.05972203]
[1617469673066,61.1061,2049.7,2046.2,4.96245936]
[1617469673260,62.8459,2049.7,2046.2,4.96245936]
[1617469673760,62.8459,2049.7,2046.1,4.96247283]
[1617469673961,13.7637,2049.6,2048.2,2.90695]
[1617469675864,2.90695,2048.3,2048.2,2.90695]
[1617469676064,5.21855,2048.3,2048.2,2.90695]
[1617469677965,5.21855,2048.3,2047.9,2.90695]
[1617469678664,5.21855,2048.3,2046.7,73.1884]
[1617469679867,2.90695,2047.5,2047.4,2.90695]
[1617469680666,2.90695,2047.5,2045.3,4.95262002]
[1617469680867,2.90695,2047.5,2045.5,70.056]
[1617469681267,2.90695,2047.5,2045.6,0.14299657]
[1617469681467,56.9755,2048.0,2045.6,0.14299657]
[1617469681668,7.618,2059.3,2045.6,1.71959657]
[1617469681669,13.7637,2049.6,2045.6,1.71959657]
[1617469681968,13.7637,2049.6,2048.2,2.90695]
[1617469682167,13.7637,2049.6,2048.2,4.66665]
[1617469683969,13.7637,2049.6,2048.8,2.90695]
[1617469684169,13.0235,2051.4,2048.8,2.90695]
[1617469684372,76.6486,2051.4,2048.8,2.90695]
[1617469684771,63.6251,2051.4,2048.8,2.90695]
[1617469685874,63.6251,2051.4,2050.5,2.90695]
[1617469686073,13.9272,2052.1,2050.5,5.35965]
[1617469686274,13.9272,2052.1,2050.5,2.4527]
[1617469687376,13.9272,2052.1,2050.1,77.0585]
[1617469687977,13.9272,2052.1,2050.3,2.90695]
[1617469688577,13.9272,2052.1,2050.1,77.0585]
[1617469689879,2.90695,2050.2,2050.1,77.0585]
[1617469690981,13.9272,2052.1,2050.1,77.20137805]
[1617469691282,13.9272,2052.1,2050.2,0.14286966]
[1617469691887,13.9272,2052.1,2050.6,2.90695]
[1617469692183,13.9272,2052.1,2050.2,0.14286966]
[1617469692383,13.9272,2052.1,2050.1,78.8096]
[1617469692588,13.9272,2052.1,2050.2,0.14286741]
[1617469694186,2.90695,2050.6,2050.3,2.90695]
[1617469694686,2.90695,2050.6,2050.4,0.1428675]
[1617469694886,13.9272,2052.1,2050.4,0.1428675]
[1617469695988,13.9272,2052.1,2051.3,2.90695]
[1617469696187,13.9272,2052.1,2051.3,4.46645]